{"text_format":"1","workbook":"xlsx","n_sheets":6,"sheets":["Prototype A1","Prototype A3","Prototype A20","Prototype B1","Prototype C1","Prototype D7"],"not_rendered":{"charts":0,"images":0,"macros":1,"external_links":0,"defined_names":210,"comments":0,"pivot_tables":0},"unopened":[],"bounds":{"document_bytes":16777216,"sheet_cells":100000,"rows_first":2000,"rows_last":500,"rows_between":2000,"halvings":0,"cell_chars":16384,"cell_head_chars":4096},"cells_cut":0,"cells_raw":0,"read":"whole","date_system":"1900"}

{"sheet":"Prototype A1","index":0,"n_rows":84,"n_cols":15,"rows_kept":84,"cut":false,"hidden":false,"merged":[[3,10,3,14],[3,5,3,9]]}
[]
["Output Results for Performance Based Code Compliance Reference Design Tests (Envelope Requirements shall use U-Factor for walls and Roofs, and F-Factor for slab-on-grade floors)"]
[]
[null,null,null,null,null,"Test Run 1 (Climate Zone 1)",null,null,null,null,"Test Run 2 (Climate Zone 2)"]
[null,"TYPE","Description of Components","UNITS","MIN / MAX","Sizing Results","Reference Results for Baseline model (ASHRAE)","Compliance Software Baseline Model Results (ASHRAE)","Reference Results for Baseline model (FEC)","Compliance Software Baseline Model Results (FEC)","Sizing Results","Reference Results for Baseline model (ASHRAE)","Compliance Software Baseline Model Results (ASHRAE)","Reference Results for Baseline model (FEC)","Compliance Software Baseline Model Results (FEC)"]
["Envelope Components"]
[null,"Wall","Exterior Wall: U-Value","Btu/(h-ft2-°F)","MAX",null,8.8999999999999996E-2,null,6.4000000000000001E-2,null,null,8.8999999999999996E-2,null,6.4000000000000001E-2]
[null,"Wall","Exterior Wall: Thermal Capacity","(Btu/ft2-°F)",null,null,3.94,null,"NA",null,null,3.94,null,"NA"]
[null,"Wall","Exterior Wall: Solar Reflectance","-","MIN",null,"NA",null,"NR",null,null,"NA",null,"NR"]
[null,"Wall","Exterior Wall: Solar Absorptance","-","MAX",null,"NA",null,0.75,null,null,"NA",null,0.75]
[null,"Wall","Exterior Wall: Thermal Emittance","-","MIN",null,"NA",null,0.9,null,null,"NA",null,0.9]
[null,"Floor","Floor Slab-on-grade: Unheated F-factor","Btu/(h-ft-°F)","MAX",null,0.73,null,0.73,null,null,0.73,null,0.73]
[null,"Floor","Floor Slab-on-grade: Thermal Capacity","(Btu/ft2-°F)",null,null,9.33,null,"NA",null,null,9.33,null,"NA"]
[null,"Roof","Exterior Roof: U-Value","Btu/(h-ft2-°F)","MAX",null,6.3E-2,null,4.8000000000000001E-2,null,null,6.3E-2,null,4.8000000000000001E-2]
[null,"Roof","Exterior Roof: Thermal Capacity","(Btu/ft2-°F)",null,null,2.79,null,"NA",null,null,2.79,null,"NA"]
[null,"Roof","Exterior Roof: Solar Reflectance","-","MIN",null,0.6,null,"NA",null,null,0.6,null,"NA"]
[null,"Roof","Exterior Roof: Solar Absorptance","-","MAX",null,"NR",null,0.75,null,null,"NR",null,0.75]
[null,"Roof","Exterior Roof: Thermal Emittance","-","MIN",null,0.9,null,0.9,null,null,0.9,null,0.9]
[null,"Fenestration","Exterior Window: U-Value","Btu/(h-ft2-°F)","MAX",null,1.2,null,0.5,null,null,0.75,null,0.5]
[null,"Fenestration","Exterior Window: SHGC","-","MAX",null,0.25,null,0.25,null,null,0.25,null,0.25]
[null,"Fenestration","Exterior Window: WWR","(%)","Max",null,40,null,40,null,null,40,null,40]
[null,"Fenestration","Window Area"]
[null,"Fenestration","South Window Area","ft2","MAX",null,550,null,550,null,null,550,null,550]
[null,"Fenestration","East Window Area","ft2","MAX",null,550,null,550,null,null,550,null,550]
[null,"Fenestration","North Window Area","ft2","MAX",null,550,null,550,null,null,550,null,550]
[null,"Fenestration","West Window Area","ft2","MAX",null,550,null,550,null,null,550,null,550]
[null,"Skylight","Skylight Area","ft2","MAX",null,1125,null,675,null,null,1125,null,675]
[null,"Skylight","Skylight: U-Value","Btu/(h-ft2-°F)","MAX",null,1.98,null,0.75,null,null,1.98,null,0.65]
[null,"Skylight","Skylight: SHGC","-","MAX",null,0.19,null,0.35,null,null,0.19,null,0.35]
[null,"Skylight","Skylight: Skylight-Roof Ratio","(%)","MAX",null,5,null,3,null,null,5,null,3]
[null,null," "]
["Interior Lighting"]
[null,"Lighting","LPD: Building Area Method","W/ft2","MAX",null,0.9,null,0.9,null,null,0.9,null,0.9]
[null,null,null,null,""]
["Exterior Lighting",null,null,null,""]
[null,"Lighting","Total Lighting Allowance","W","MAX",null,870,null,870,null,null,870,null,870]
[null,null,null,null,""]
["Internal Loads"]
[null,"Equipment","Internal Electric Power Density","W/ft2","-",null,1,null,1,null,null,1,null,1]
[]
["HVAC System"]
[null,null,"HVAC System Type",null,null,null,"Packaged Roof Top Heat Pump",null,"Packaged Roof Top Heat Pump",null,null,"Packaged Roof Top Heat Pump",null,"Packaged Roof Top Heat Pump"]
[null,null,"Electric Resistance Heating Efficiency (Et)","%",null,null,100,null,100,null,null,100,null,100]
[]
[null,null,"Cooling Minimum Efficiency:"]
[null,"Cooling DX","North Zone System Efficiency: ASHRAE","SEER","MIN",36,13,null,null,null,33,13]
[null,"Cooling DX","North Zone System Efficiency: FEC","SEER","MIN",36,null,null,13,null,33,null,null,13]
[]
[null,"Cooling DX","South Zone System Efficiency: ASHRAE","SEER","MIN",37,13,null,null,null,34,13]
[null,"Cooling DX","South Zone System Efficiency: FEC","SEER","MIN",37,null,null,13,null,34,null,null,13]
[]
[null,"Cooling DX","East Zone System Efficiency: ASHRAE","SEER","MIN",59,13,null,null,null,55,13]
[null,"Cooling DX","East Zone System Efficiency: FEC","SEER","MIN",59,null,null,13,null,55,null,null,13]
[]
[null,"Cooling DX","West Zone System Efficiency: ASHRAE","SEER","MIN",44,13,null,null,null,40,13]
[null,"Cooling DX","West Zone System Efficiency: FEC","SEER","MIN",44,null,null,13,null,40,null,null,13]
[]
[null,"Cooling DX","Core Zone System Efficiency: ASHRAE","EER / IEER","MIN",308,"10.0 / 10.1",null,null,null,300,"10.0 / 10.1"]
[null,"Cooling DX","Core Zone System Efficiency: FEC","EER / IEER","MIN",308,null,null,"10.0 / 10.1",null,300,null,null,"10.0 / 10.1"]
[]
[]
[null,null,"Air Economizer (Yes, or No):"]
[null,"Air Economizer","North Zone System Economizer: ASHRAE ","-","-",{"$f":"CoolCapNorthZone","v":36},"No",null,null,null,{"$f":"CoolCapNorthZoneCZ2","v":33},"No"]
[null,"Air Economizer","North Zone System Economizer: FEC","-","-",{"$f":"CoolCapNorthZoneIECC","v":36},null,null,"No",null,{"$f":"CoolCapNorthZoneIECCCZ2","v":33},null,null,"Yes"]
[]
[null,"Air Economizer","South Zone System Economizer: ASHRAE ","-","-",{"$f":"CoolCapSouthZone","v":37},"No",null,null,null,{"$f":"CoolCapSouthZoneCZ2","v":34},"No"]
[null,"Air Economizer","South Zone System Economizer: FEC","-","-",{"$f":"CoolCapSouthZoneIECC","v":37},null,null,"No",null,{"$f":"CoolCapSouthZoneIECCCZ2","v":34},null,null,"Yes"]
[]
[null,"Air Economizer","East Zone System Economizer: ASHRAE ","-","-",{"$f":"CoolCapEastZone","v":59},"No",null,null,null,{"$f":"CoolCapEastZoneCZ2","v":55},"Yes"]
[null,"Air Economizer","East Zone System Economizer: FEC","-","-",{"$f":"CoolCapEastZoneIECC","v":59},null,null,"No",null,{"$f":"CoolCapEastZoneIECCCZ2","v":55},null,null,"Yes"]
[]
[null,"Air Economizer","West Zone System Economizer: ASHRAE ","-","-",{"$f":"CoolCapWestZone","v":44},"No",null,null,null,{"$f":"CoolCapWestZoneCZ2","v":40},"No"]
[null,"Air Economizer","West Zone System Economizer: FEC","-","-",{"$f":"CoolCapWestZoneIECC","v":44},null,null,"No",null,{"$f":"CoolCapWestZoneIECCCZ2","v":40},null,null,"Yes"]
[]
[null,"Air Economizer","Core Zone System Economizer: ASHRAE ","-","-",{"$f":"CoolCapCoreZone","v":308},"No",null,null,null,{"$f":"CoolCapCoreZoneCZ2","v":300},"Yes"]
[null,"Air Economizer","Core Zone System Economizer: FEC","-","-",{"$f":"CoolCapCoreZoneIECC","v":308},null,null,"No",null,{"$f":"CoolCapCoreZoneIECCCZ2","v":300},null,null,"Yes"]
[]
[]
["Service Water Heating"]
[null,"SWH","SWH Type",null,null,null,"Storage Water Heater",null,"Storage Water Heater",null,null,"Storage Water Heater",null,"Storage Water Heater"]
[null,"SWH","Fuel Type",null,null,null,"Electric",null,"Electric",null,null,"Electric",null,"Electric"]
[null,"SWH","Thermal Efficiency:"]
[null,"SWH","Size <= 12 kW, Energy Factor (EF)"," - ","MIN",11,0.86439999999999995,null,0.86439999999999995,null,14]
[null,"SWH","Size > 12 kW, Size > 20 gal, Standby Loss","Btu/h","MAX",{"$f":"SWHCapacity","v":11},null,null,null,null,{"$f":"SWHCapacityCZ2","v":14},333.05,null,293.39999999999998]

{"sheet":"Prototype A3","index":1,"n_rows":83,"n_cols":15,"rows_kept":83,"cut":false,"hidden":false,"merged":[[3,10,3,14],[3,5,3,9]]}
[]
["Output Results for Performance Based Code Compliance Reference Design Tests (Envelope Requirements shall use U-Factor for walls and Roofs, and F-Factor for slab-on-grade floors)"]
[]
[null,null,null,null,null,"Test Run 1 (Climate Zone 1)",null,null,null,null,"Test Run 2 (Climate Zone 2)"]
[null,"TYPE","Description of Components","UNITS","MIN / MAX","Sizing Results","Reference Results for Baseline model (ASHRAE)","Compliance Software Baseline Model Results (ASHRAE)","Reference Results for Baseline model (FEC)","Compliance Software Baseline Model Results (FEC)","Sizing Results","Reference Results for Baseline model (ASHRAE)","Compliance Software Baseline Model Results (ASHRAE)","Reference Results for Baseline model (FEC)","Compliance Software Baseline Model Results (FEC)"]
["Envelope Components"]
[null,"Wall","Exterior Wall: U-Value","Btu/(h-ft2-°F)","MAX",null,0.124,null,7.6999999999999999E-2,null,null,0.124,null,7.6999999999999999E-2]
[null,"Wall","Exterior Wall: Thermal Capacity","(Btu/ft2-°F)",null,null,3.11,null,"NA",null,null,3.11,null,"NA"]
[null,"Wall","Exterior Wall: Solar Reflectance","-","MIN",null,"NA",null,"NR",null,null,"NA",null,"NR"]
[null,"Wall","Exterior Wall: Solar Absorptance","-","MAX",null,"NA",null,0.75,null,null,"NA",null,0.75]
[null,"Wall","Exterior Wall: Thermal Emittance","-","MIN",null,"NA",null,0.9,null,null,"NA",null,0.9]
[null,"Floor","Floor Slab-on-grade: Unheated F-factor","Btu/(h-ft-°F)","MAX",null,0.73,null,0.73,null,null,0.73,null,0.73]
[null,"Floor","Floor Slab-on-grade: Thermal Capacity","(Btu/ft2-°F)",null,null,9.33,null,"NA",null,null,9.33,null,"NA"]
[null,"Roof","Exterior Roof: U-Value","Btu/(h-ft2-°F)","MAX",null,6.3E-2,null,4.8000000000000001E-2,null,null,4.8000000000000001E-2,null,4.8000000000000001E-2]
[null,"Roof","Exterior Roof: Thermal Capacity","(Btu/ft2-°F)",null,null,2.7,null,"NA",null,null,2.7,null,"NA"]
[null,"Roof","Exterior Roof: Solar Reflectance","-","MIN",null,0.6,null,"NA",null,null,0.6,null,"NA"]
[null,"Roof","Exterior Roof: Solar Absorptance","-","MAX",null,"NR",null,0.75,null,null,"NR",null,0.75]
[null,"Roof","Exterior Roof: Thermal Emittance","-","MIN",null,0.9,null,0.9,null,null,0.9,null,0.9]
[null,"Floor","Internal Floor: Thermal Capacity","(Btu/ft2-°F)",null,null,8.3800000000000008,null,"NA",null,null,8.3800000000000008,null,"NA"]
[null,"Floor","Internal Floor: U-Value","Btu/(h-ft2-°F)","MAX",null,0.33200000000000002,null,6.6000000000000003E-2,null,null,0.107,null,3.3000000000000002E-2]
[null,"Fenestration","Exterior Window: U-Value","Btu/(h-ft2-°F)","MAX",null,1.2,null,0.5,null,null,0.75,null,0.5]
[null,"Fenestration","Exterior Window: SHGC","-","MAX",null,0.25,null,0.25,null,null,0.25,null,0.25]
[null,"Fenestration","Exterior Window: WWR","(%)","Max",null,40,null,40,null,null,40,null,40]
[null,"Fenestration","Window Area"]
[null,"Fenestration","South Window Area","ft2","MAX",null,1650,null,1650,null,null,1650,null,1650]
[null,"Fenestration","East Window Area","ft2","MAX",null,1650,null,1650,null,null,1650,null,1650]
[null,"Fenestration","North Window Area","ft2","MAX",null,1650,null,1650,null,null,1650,null,1650]
[null,"Fenestration","West Window Area","ft2","MAX",null,1650,null,1650,null,null,1650,null,1650]
[null,"Skylight","Skylight Area","ft2","MAX",null,"NA",null,"NA",null,null,"NA",null,"NA"]
[null,"Skylight","Skylight: U-Value","Btu/(h-ft2-°F)","MAX",null,"NA",null,"NA",null,null,"NA",null,"NA"]
[null,"Skylight","Skylight: SHGC","-","MAX",null,"NA",null,"NA",null,null,"NA",null,"NA"]
[null,"Skylight","Skylight: Skylight-Roof Ratio","(%)","MAX"]
[]
["Interior Lighting"]
[null,"Lighting","LPD: Building Area Method","W/ft2","MAX",null,0.9,null,0.9,null,null,0.9,null,0.9]
[null,null,null,null,""]
["Exterior Lighting",null,null,null,""]
[null,"Lighting","Total Lighting Allowance (W)","W","MAX",null,870,null,870,null,null,870,null,870]
[null,null,null,null,""]
["Internal Loads"]
[null,"Equipment","Internal Electric Power Density","W/ft2","-",null,1,null,1,null,null,1,null,1]
[]
["HVAC System"]
[null,null,"HVAC System Type",null,null,null,"Packaged VAV with reheat, DX, Fossil Fuel HotWater Boiler",null,"Packaged VAV with reheat, DX, Fossil Fuel HotWater Boiler",null,null,"Packaged VAV with reheat, DX, Fossil Fuel HotWater Boiler",null,"Packaged VAV with reheat, DX, Fossil Fuel HotWater Boiler"]
[]
[null,null,"Boiler Minimum Heating Efficiency:"]
[null,"Gas Boiler","Gas-Fired Boiler Efficiency: ASHRAE","% Et","MIN",670,80,null,null,null,800,80]
[null,"Gas Boiler","Gas-Fired Boiler Efficiency: FEC","% Et","MIN",670,null,null,80,null,800,null,null,80]
[]
[]
[null,null,"Cooling Minimum Efficiency:"]
[null,"Cooling DX","First Floor System Efficiency: ASHRAE","EER / IEER","MIN",500,"10.0 / 10.1",null,null,null,450,"10.0 / 10.1"]
[null,"Cooling DX","First Floor System Efficiency: FEC","EER / IEER","MIN",500,null,null,"10.0 / 10.1",null,450,null,null,"10.0 / 10.1"]
[]
[null,"Cooling DX","Mid Floor System Efficiency: ASHRAE","EER / IEER","MIN",500,"10.0 / 10.1",null,null,null,450,"10.0 / 10.1"]
[null,"Cooling DX","Mid Floor System Efficiency: FEC","EER / IEER","MIN",500,null,null,"10.0 / 10.1",null,450,null,null,"10.0 / 10.1"]
[]
[null,"Cooling DX","Top Floor System Efficiency: ASHRAE","EER / IEER","MIN",600,"10.0 / 10.1",null,null,null,500,"10.0 / 10.1"]
[null,"Cooling DX","Top Floor System Efficiency: FEC","EER / IEER","MIN",600,null,null,"10.0 / 10.1",null,500,null,null,"10.0 / 10.1"]
[]
[]
[null,null,"Air Economizer Requirement (Yes, or No):"]
[null,"Air Economizer","First Floor System Economizer: ASHRAE ","-","-",{"$f":"FirstFloorCoolCap","v":500},"No",null,null,null,{"$f":"FirstFloorCoolCapCZ2","v":450},"Yes"]
[null,"Air Economizer","First Floor System Economizer: FEC","-","-",{"$f":"FirstFloorCoolCapIECC","v":500},null,null,"No",null,{"$f":"FirstFloorCoolCapIECCCZ2","v":450},null,null,"Yes"]
[]
[null,"Air Economizer","Mid Floor System Economizer: ASHRAE ","-","-",{"$f":"MidFloorCoolCap","v":500},"No",null,null,null,{"$f":"MidFloorCoolCapCZ2","v":450},"Yes"]
[null,"Air Economizer","Mid Floor System Economizer: FEC","-","-",{"$f":"MidFloorCoolCapIECC","v":500},null,null,"No",null,{"$f":"MidFloorCoolCapIECCCZ2","v":450},null,null,"Yes"]
[]
[null,"Air Economizer","Top Floor System Economizer: ASHRAE ","-","-",{"$f":"TopFloorCoolCap","v":600},"No",null,null,null,{"$f":"TopFloorCoolCapCZ2","v":500},"Yes"]
[null,"Air Economizer","Top Floor System Economizer: FEC","-","-",{"$f":"TopFloorCoolCapIECC","v":600},null,null,"No",null,{"$f":"TopFloorCoolCapIECCCZ2","v":500},null,null,"Yes"]
[]
[]
["Service Water Heating"]
[null,"SWH","SWH Type",null,null,null,"Storage Water Heater",null,"Storage Water Heater",null,null,"Storage Water Heater",null,"Storage Water Heater"]
[null,"SWH","Fuel Type",null,null,null,"Gas",null,"Gas",null,null,"Gas",null,"Gas"]
[null,"SWH","Thermal Efficiency:"]
[null,"SWH","Size <= 75 kBtu/h, Energy Factor (EF)"," - ","MIN",75,0.51800000000000002,null,0.51800000000000002,null,77]
[null,"SWH","Size > 75 kBtu/h, Thermal Efficiency (Et)","%","MIN",{"$f":"SWHCapacity","v":75},null,null,null,null,{"$f":"SWHCapacityCZ2","v":77},80,null,80]
[]
[]
["Elevator Motor"]
[null,null,"Electric Motor Power (HP)","HP","MAX",null,7.5,null,7.5,null,null,7.5,null,7.5]
[null,null,"Electric Motor Efficiency (%)","%","MIN",null,88,null,88,null,null,88,null,88]

{"sheet":"Prototype A20","index":2,"n_rows":71,"n_cols":15,"rows_kept":71,"cut":false,"hidden":false,"merged":[[3,5,3,9],[3,10,3,14]]}
[]
["Output Results for Performance Based Code Compliance Reference Design Tests (Envelope Requirements shall use U-Factor for walls and Roofs, and F-Factor for slab-on-grade floors)"]
[]
[null,null,null,null,null,"Test Run 1 (Climate Zone 1)",null,null,null,null,"Test Run 2 (Climate Zone 2)"]
[null,"TYPE","Description of Components","UNITS","MIN / MAX","Sizing Results","Reference Results for Baseline model (ASHRAE)","Compliance Software Baseline Model Results (ASHRAE)","Reference Results for Baseline model (FEC)","Compliance Software Baseline Model Results (FEC)","Sizing Results","Reference Results for Baseline model (ASHRAE)","Compliance Software Baseline Model Results (ASHRAE)","Reference Results for Baseline model (FEC)","Compliance Software Baseline Model Results (FEC)"]
["Envelope Components"]
[null,"Wall","Exterior Wall: U-Value","Btu/(h-ft2-°F)","MAX",null,0.124,null,7.6999999999999999E-2,null,null,0.124,null,7.6999999999999999E-2]
[null,"Wall","Exterior Wall: Thermal Capacity","(Btu/ft2-°F)",null,null,3.11,null,"NA",null,null,3.11,null,"NA"]
[null,"Wall","Exterior Wall: Solar Reflectance","-","MIN",null,"NA",null,"NR",null,null,"NA",null,"NR"]
[null,"Wall","Exterior Wall: Solar Absorptance","-","MAX",null,"NA",null,0.75,null,null,"NA",null,0.75]
[null,"Wall","Exterior Wall: Thermal Emittance","-","MIN",null,"NA",null,0.9,null,null,"NA",null,0.9]
[null,"Floor","Floor Slab-on-grade: Unheated F-factor","Btu/(h-ft-°F)","MAX",null,0.73,null,0.73,null,null,0.73,null,0.73]
[null,"Floor","Floor Slab-on-grade: Thermal Capacity","(Btu/ft2-°F)",null,null,9.33,null,"NA",null,null,9.33,null,"NA"]
[null,"Roof","Exterior Roof: U-Value","Btu/(h-ft2-°F)","MAX",null,6.3E-2,null,4.8000000000000001E-2,null,null,4.8000000000000001E-2,null,4.8000000000000001E-2]
[null,"Roof","Exterior Roof: Thermal Capacity","(Btu/ft2-°F)",null,null,2.7,null,"NA",null,null,2.7,null,"NA"]
[null,"Roof","Exterior Roof: Solar Reflectance","-","MIN",null,0.6,null,"NA",null,null,0.6,null,"NA"]
[null,"Roof","Exterior Roof: Solar Absorptance","-","MAX",null,"NR",null,0.75,null,null,"NR",null,0.75]
[null,"Roof","Exterior Roof: Thermal Emittance","-","MIN",null,0.9,null,0.9,null,null,0.9,null,0.9]
[null,"Floor","Internal Floor: Thermal Capacity","(Btu/ft2-°F)",null,null,9.81,null,"NA",null,null,9.81,null,"NA"]
[null,"Floor","Internal Floor: U-Value","Btu/(h-ft2-°F)","MAX",null,0.33200000000000002,null,6.6000000000000003E-2,null,null,0.107,null,3.3000000000000002E-2]
[null,"Fenestration","Exterior Window: U-Value","Btu/(h-ft2-°F)","MAX",null,1.2,null,0.5,null,null,0.75,null,0.5]
[null,"Fenestration","Exterior Window: SHGC","-","MAX",null,0.25,null,0.25,null,null,0.25,null,0.25]
[null,"Fenestration","Exterior Window: WWR","(%)","Max",null,40,null,40,null,null,40,null,40]
[null,"Fenestration","Window Area"]
[null,"Fenestration","South Window Area","ft2","MAX",null,14440,null,14440,null,null,14440,null,14440]
[null,"Fenestration","East Window Area","ft2","MAX",null,14440,null,14440,null,null,14440,null,14440]
[null,"Fenestration","North Window Area","ft2","MAX",null,14440,null,14440,null,null,14440,null,14440]
[null,"Fenestration","West Window Area","ft2","MAX",null,14440,null,14440,null,null,14440,null,14440]
[null,"Skylight","Skylight Area","ft2","MAX",null,"NA",null,"NA",null,null,"NA",null,"NA"]
[null,"Skylight","Skylight: U-Value","Btu/(h-ft2-°F)","MAX",null,"NA",null,"NA",null,null,"NA",null,"NA"]
[null,"Skylight","Skylight: SHGC","-","MAX",null,"NA",null,"NA",null,null,"NA",null,"NA"]
[null,"Skylight","Skylight: Skylight-Roof Ratio","(%)","MAX"]
[]
["Interior Lighting"]
[null,"Lighting","LPD: Building Area Method","W/ft2","MAX",null,0.9,null,0.9,null,null,0.9,null,0.9]
[null,null,null,null,""]
["Exterior Lighting",null,null,null,""]
[null,"Lighting","Total Lighting Allowance (W)","W","MAX",null,1450,null,1450,null,null,1450,null,1450]
[null,null,null,null,""]
["Internal Loads"]
[null,"Equipment","Internal Electric Power Density","W/ft2","-",null,1,null,1,null,null,1,null,1]
[]
["HVAC System"]
[null,null,"HVAC system type",null,null,null,"VAV with Reheat, Chilled Water, Hot-Water Fossil Fuel Boiler",null,"VAV with Reheat, Chilled Water, Hot-Water Fossil Fuel Boiler",null,null,"VAV with Reheat, Chilled Water, Hot-Water Fossil Fuel Boiler",null,"VAV with Reheat, Chilled Water, Hot-Water Fossil Fuel Boiler"]
[]
[null,null,"Boiler Minimum Heating Efficiency:"]
[null,"Oil Boiler","Oil-Fired Boiler Efficiency: ASHRAE","% Et","MIN",2100,82,null,null,null,2500,84]
[null,"Oil Boiler","Oil-Fired Boiler Efficiency: FEC","% Et","MIN",2100,null,null,82,null,2500,null,null,84]
[]
[]
[null,null,"Water Chilling Package Minimum Efficiency:"]
[null,null,"Electrically Operated: "]
[null,null,"Path A: Centrifugal"]
[null,"Chiller","Central Centrifugal Chiller Efficiency: ASHRAE","kW/ton","MIN",920,"0.570 kW/ton, 0.539 IPLV",null,null,null,800,"0.570 kW/ton, 0.539 IPLV"]
[null,"Chiller","Central Centrifugal Chiller Efficiency: FEC","kW/ton","MIN",920,null,null,"0.570 kW/ton, 0.539 IPLV",null,800,null,null,"0.570 kW/ton, 0.539 IPLV"]
[]
[]
[null,null,"Air Economizer Requirement (Yes, or No):"]
[null,"Air Economizer","First Floor System Economizer: ASHRAE ","-","-",500,"No",null,null,null,500,"Yes"]
[null,"Air Economizer","First Floor System Economizer: FEC","-","-",500,null,null,"No",null,500,null,null,"Yes"]
[]
[null,"Air Economizer","Mid Floors (2-19) System Economizer: ASHRAE ","-","-",500,"No",null,null,null,500,"Yes"]
[null,"Air Economizer","Mid Floors (2-19) System Economizer: FEC","-","-",500,null,null,"No",null,500,null,null,"Yes"]
[]
[null,"Air Economizer","Top Floor System Economizer: ASHRAE ","-","-",600,"No",null,null,null,550,"Yes"]
[null,"Air Economizer","Top Floor System Economizer: FEC","-","-",600,null,null,"No",null,550,null,null,"Yes"]
[]
[]
["Elevator Motor"]
[null,null,"Electric Motor Power (HP)","HP","MAX",null,20,null,20,null,null,20,null,20]
[null,null,"Electric Motor Efficiency (%)","%","MAX",null,92,null,92,null,null,92,null,92]

{"sheet":"Prototype B1","index":3,"n_rows":106,"n_cols":25,"rows_kept":106,"cut":false,"hidden":false,"merged":[[3,20,3,24],[3,6,3,9],[3,16,3,19],[3,10,3,14]]}
[]
["Output Results for Performance Based Code Compliance Reference Design Tests (Envelope Requirements shall use U-Factor for walls and Roofs, and F-Factor for slab-on-grade floors)"]
[]
[null,null,null,null,null,null,"Test Run 1 (Climate Zone 1), Retail",null,null,null,"Test Run 2 (Climate Zone 2), Retail",null,null,null,null,null,"Test Run 3 (Climate Zone 1), Supermarket",null,null,null,"Test Run 4 (Climate Zone 2), Supermarket"]
[null,"TYPE","Description of Components","UNITS","MIN / MAX","Sizing Results","Reference Results for Baseline model (ASHRAE)","Compliance Software Baseline Model Results (ASHRAE)","Reference Results for Baseline model (FEC)","Compliance Software Baseline Model Results (FEC)","Sizing Results","Reference Results for Baseline model (ASHRAE)","Compliance Software Baseline Model Results (ASHRAE)","Reference Results for Baseline model (FEC)","Compliance Software Baseline Model Results (FEC)","Sizing Results","Reference Results for Baseline model (ASHRAE)","Compliance Software Baseline Model Results (ASHRAE)","Reference Results for Baseline model (FEC)","Compliance Software Baseline Model Results (FEC)","Sizing Results","Reference Results for Baseline model (ASHRAE)","Compliance Software Baseline Model Results (ASHRAE)","Reference Results for Baseline model (FEC)","Compliance Software Baseline Model Results (FEC)"]
["Envelope Components"]
[null,"Wall","Exterior Wall: U-Value","Btu/(h-ft2-°F)","MAX",null,0.57999999999999996,null,0.14199999999999999,null,null,0.151,null,0.14199999999999999,null,null,0.57999999999999996,null,0.14199999999999999,null,null,0.151,null,0.14199999999999999]
[null,"Wall","Exterior Wall: Thermal Capacity","(Btu/ft2-°F)",null,null,21.5,null,"NA",null,null,21.5,null,"NA",null,null,21.5,null,"NA",null,null,21.5,null,"NA"]
[null,"Wall","Exterior Wall: Solar Reflectance","-","MIN",null,"NA",null,"NR",null,null,"NA",null,"NR",null,null,"NA",null,"NR",null,null,"NA",null,"NA"]
[null,"Wall","Exterior Wall: Solar Absorptance","-","MAX",null,"NA",null,0.75,null,null,"NA",null,0.75,null,null,"NA",null,0.75,null,null,"NA",null,"NA"]
[null,"Wall","Exterior Wall: Thermal Emittance","-","MIN",null,"NA",null,0.9,null,null,"NA",null,0.9,null,null,"NA",null,0.9,null,null,"NA",null,"NA"]
[null,"Floor","Floor Slab-on-grade: Unheated F-factor","Btu/(h-ft-°F)","MAX",null,0.73,null,0.73,null,null,0.73,null,0.73,null,null,0.73,null,0.73,null,null,0.73,null,0.73]
[null,"Floor","Floor Slab-on-grade: Thermal Capacity","(Btu/ft2-°F)",null,null,8.25,null,"NA",null,null,8.25,null,"NA",null,null,8.25,null,"NA",null,null,8.25,null,"NA"]
[null,"Roof","Exterior Roof: U-Value","Btu/(h-ft2-°F)","MAX",null,6.3E-2,null,4.8000000000000001E-2,null,null,4.8000000000000001E-2,null,4.8000000000000001E-2,null,null,6.3E-2,null,4.8000000000000001E-2,null,null,4.8000000000000001E-2,null,4.8000000000000001E-2]
[null,"Roof","Exterior Roof: Thermal Capacity","(Btu/ft2-°F)",null,null,2.83,null,"NA",null,null,2.83,null,"NA",null,null,2.83,null,"NA",null,null,2.83,null,"NA"]
[null,"Roof","Exterior Roof: Solar Reflectance","-","MIN",null,0.6,null,"NA",null,null,0.6,null,"NA",null,null,0.6,null,"NA",null,null,0.6,null,"NA"]
[null,"Roof","Exterior Roof: Solar Absorptance","-","MAX",null,"NR",null,0.75,null,null,"NR",null,0.75,null,null,"NR",null,0.75,null,null,"NR",null,0.75]
[null,"Roof","Exterior Roof: Thermal Emittance","-","MIN",null,0.9,null,0.9,null,null,0.9,null,0.9,null,null,0.9,null,0.9,null,null,0.9,null,0.9]
[null,"Fenestration","Exterior Window: U-Value","Btu/(h-ft2-°F)","MAX",null,1.2,null,0.5,null,null,1.1000000000000001,null,0.5,null,null,1.2,null,0.5,null,null,1.1000000000000001,null,0.5]
[null,"Fenestration","Exterior Window: SHGC","-","MAX",null,0.25,null,0.25,null,null,0.25,null,0.25,null,null,0.25,null,0.25,null,null,0.25,null,0.25]
[null,"Fenestration","Overhang Multiplier South Orientations, (-)",null,null,null,0.44,null,1.6,null,null,0.44,null,1.6,null,null,0.44,null,1.6,null,null,0.44,null,1.6]
[null,"Fenestration","Adjusted SHGC South Orientation, (-)",null,null,null,{"$f":"G$20*G$21","v":0.11},null,{"$f":"I$20*I$21","v":0.4},null,null,{"$f":"L$20*L$21","v":0.11},null,{"$f":"N$20*N$21","v":0.4},null,null,{"$f":"Q$20*Q$21","v":0.11},null,{"$f":"S$20*S$21","v":0.4},null,null,{"$f":"V$20*V$21","v":0.11},null,{"$f":"X$20*X$21","v":0.4}]
[null,"Fenestration","Exterior Window: WWR","(%)","Max",null,40,null,40,null,null,40,null,40,null,null,40,null,40,null,null,40,null,40]
[null,"Fenestration","Window Area"]
[null,"Fenestration","South Window Area","ft2","MAX",null,640,null,640,null,null,640,null,640,null,null,640,null,640,null,null,640,null,640]
[null,"Fenestration","East Window Area","ft2","MAX",null,0,null,0,null,null,0,null,0,null,null,0,null,0,null,null,0,null,0]
[null,"Fenestration","North Window Area","ft2","MAX",null,0,null,0,null,null,0,null,0,null,null,0,null,0,null,null,0,null,0]
[null,"Fenestration","West Window Area","ft2","MAX",null,0,null,0,null,null,0,null,0,null,null,0,null,0,null,null,0,null,0]
[null,"Skylight","Skylight Area","ft2","MAX",null,2000,null,1200,null,null,2000,null,1200,null,null,2000,null,1200,null,null,2000,null,1200]
[null,"Skylight","Skylight: U-Value","Btu/(h-ft2-°F)","MAX",null,1.98,null,0.75,null,null,1.98,null,0.65,null,null,1.98,null,0.75,null,null,1.98,null,0.65]
[null,"Skylight","Skylight: SHGC","-","MAX",null,0.19,null,0.35,null,null,0.19,null,0.35,null,null,0.19,null,0.35,null,null,0.19,null,0.35]
[null,"Skylight","Skylight: Skylight-Roof Ratio","(%)","MAX",null,5,null,3,null,null,5,null,3,null,null,5,null,3,null,null,5,null,3]
[null,null," "]
["Horizontal Overhang Shade"]
[null,null,"Projection Factor  (-)",null,null,null,0,null,0,null,null,0,null,0,null,null,0,null,0,null,null,0,null,0]
[]
["Interior Lighting"]
[null,"Lighting","LPD: Building Area Method","W/ft2","MAX",null,1.4,null,1.4,null,null,1.4,null,1.4,null,null,1.4,null,1.4,null,null,1.4,null,1.4]
[null,null,null,null,""]
["Exterior Lighting",null,null,null,""]
[null,"Lighting","Total Lighting Allowance","W","MAX",null,740,null,740,null,null,740,null,740,null,null,740,null,740,null,null,740,null,740]
[null,null,null,null,""]
["Internal Loads"]
[null,"Equipment","Internal Electric Power Density","W/ft2","-",null,0.9,null,0.9,null,null,0.9,null,0.9,null,null,1.28,null,1.28,null,null,1.28,null,1.28]
[]
["HVAC System"]
[null,null,"HVAC System Type",null,null,null,"Packaged Roof Top Heat Pump",null,"Packaged Roof Top Heat Pump",null,null,"Packaged Roof Top Heat Pump",null,"Packaged Roof Top Heat Pump",null,null,"Packaged Roof Top Heat Pump",null,"Packaged Roof Top Heat Pump",null,null,"Packaged Roof Top Heat Pump",null,"Packaged Roof Top Heat Pump"]
[]
[null,null,"Heating Minimum Efficiency:"]
[null,null,"Efficiency (HSPF, COP at 47°F/COP at 17°F):"]
[null,"Heating DX","North Zone System Efficiency: ASHRAE","COP / COP","MIN",{"$f":"CoolCapNorthZone","v":124},"3.3 / 2.25",null,null,null,{"$f":"CoolCapNorthZoneCZ2","v":124},"3.3 / 2.25",null,null,null,{"$f":"T3CoolCapNorthZone","v":108},"3.3 / 2.25",null,null,null,{"$f":"T4CoolCapNorthZone","v":108},"3.3 / 2.25"]
[null,"Heating DX","North Zone System Efficiency: FEC","COP / COP","MIN",{"$f":"CoolCapNorthZoneIECC","v":124},null,null,"3.3 / 2.25",null,{"$f":"CoolCapNorthZoneIECCCZ2","v":124},null,null,"3.3 / 2.25",null,{"$f":"T3CoolCapNorthZoneIECC","v":108},null,null,"3.3 / 2.25",null,{"$f":"T4CoolCapNorthZoneIECC","v":108},null,null,"3.3 / 2.25"]
[]
[null,"Heating DX","South Zone System Efficiency: ASHRAE","COP / COP","MIN",{"$f":"CoolCapSouthZone","v":114},"3.3 / 2.25",null,null,null,{"$f":"CoolCapSouthZoneCZ2","v":114},"3.3 / 2.25",null,null,null,{"$f":"T3CoolCapSouthZone","v":96},"3.3 / 2.25",null,null,null,{"$f":"T4CoolCapSouthZone","v":96},"3.3 / 2.25"]
[null,"Heating DX","South Zone System Efficiency: FEC","COP / COP","MIN",{"$f":"CoolCapSouthZoneIECC","v":114},null,null,"3.3 / 2.25",null,{"$f":"CoolCapSouthZoneIECCCZ2","v":114},null,null,"3.3 / 2.25",null,{"$f":"T3CoolCapSouthZoneIECC","v":96},null,null,"3.3 / 2.25",null,{"$f":"T4CoolCapSouthZoneIECC","v":96},null,null,"3.3 / 2.25"]
[]
[null,"Heating DX","East Zone System Efficiency: ASHRAE","COP / COP","MIN",240,"3.3 / 2.25",null,null,null,{"$f":"CoolCapEastZoneCZ2","v":108},"3.3 / 2.25",null,null,null,{"$f":"T3CoolCapEastZone","v":118},"3.3 / 2.25",null,null,null,{"$f":"T4CoolCapEastZone","v":118},"3.3 / 2.25"]
[null,"Heating DX","East Zone System Efficiency: FEC","COP / COP","MIN",240,null,null,"3.3 / 2.25",null,{"$f":"CoolCapEastZoneIECCCZ2","v":108},null,null,"3.3 / 2.25",null,{"$f":"T3CoolCapEastZoneIECC","v":118},null,null,"3.3 / 2.25",null,{"$f":"T4CoolCapEastZoneIECC","v":118},null,null,"3.3 / 2.25"]
[]
[null,"Heating DX","West Zone System Efficiency: ASHRAE","COP / COP","MIN",{"$f":"CoolCapWestZone","v":116},"3.3 / 2.25",null,null,null,{"$f":"CoolCapWestZoneCZ2","v":116},"3.3 / 2.25",null,null,null,{"$f":"T3CoolCapWestZone","v":94},"3.3 / 2.25",null,null,null,{"$f":"T4CoolCapWestZone","v":94},"3.3 / 2.25"]
[null,"Heating DX","West Zone System Efficiency: FEC","COP / COP","MIN",{"$f":"CoolCapWestZoneIECC","v":116},null,null,"3.3 / 2.25",null,{"$f":"CoolCapWestZoneIECCCZ2","v":116},null,null,"3.3 / 2.25",null,{"$f":"T3CoolCapWestZoneIECC","v":94},null,null,"3.3 / 2.25",null,{"$f":"T4CoolCapWestZoneIECC","v":94},null,null,"3.3 / 2.25"]
[]
[null,"Heating DX","Core Zone System Efficiency: ASHRAE","COP / COP","MIN",{"$f":"CoolCapCoreZone","v":1046},"3.2 / 2.05",null,null,null,{"$f":"CoolCapCoreZoneCZ2","v":1046},"3.2 / 2.05",null,null,null,{"$f":"T3CoolCapCoreZone","v":708},"3.2 / 2.05",null,null,null,{"$f":"T4CoolCapCoreZone","v":708},"3.2 / 2.05"]
[null,"Heating DX","Core Zone System Efficiency: FEC","COP / COP","MIN",{"$f":"CoolCapCoreZoneIECC","v":1046},null,null,"3.2 / 2.05",null,{"$f":"CoolCapCoreZoneIECCCZ2","v":1046},null,null,"3.2 / 2.05",null,{"$f":"T3CoolCapCoreZoneIECC","v":708},null,null,"3.2 / 2.05",null,{"$f":"T4CoolCapCoreZoneIECC","v":708},null,null,"3.2 / 2.05"]
[]
[]
[null,null,"Cooling Minimum Efficiency:"]
[null,"Cooling DX","North Zone System Efficiency: ASHRAE","EER / IEER","MIN",124,"11.2 / 11.4",null,null,null,124,"11.2 / 11.4",null,null,null,108,"11.2 / 11.4",null,null,null,108,"11.2 / 11.4"]
[null,"Cooling DX","North Zone System Efficiency: FEC","EER / IEER","MIN",124,null,null,"11.2 / 11.4",null,124,null,null,"11.2 / 11.4",null,108,null,null,"11.2 / 11.4",null,108,null,null,"11.2 / 11.4"]
[]
[null,"Cooling DX","South Zone System Efficiency: ASHRAE","EER / IEER","MIN",114,"11.2 / 11.4",null,null,null,114,"11.2 / 11.4",null,null,null,96,"11.2 / 11.4",null,null,null,96,"11.2 / 11.4"]
[null,"Cooling DX","South Zone System Efficiency: FEC","EER / IEER","MIN",114,null,null,"11.2 / 11.4",null,114,null,null,"11.2 / 11.4",null,96,null,null,"11.2 / 11.4",null,96,null,null,"11.2 / 11.4"]
[]
[null,"Cooling DX","East Zone System Efficiency: ASHRAE","EER / IEER","MIN",108,"11.2 / 11.4",null,null,null,108,"11.2 / 11.4",null,null,null,118,"11.2 / 11.4",null,null,null,118,"11.2 / 11.4"]
[null,"Cooling DX","East Zone System Efficiency: FEC","EER / IEER","MIN",108,null,null,"11.2 / 11.4",null,108,null,null,"11.2 / 11.4",null,118,null,null,"11.2 / 11.4",null,118,null,null,"11.2 / 11.4"]
[]
[null,"Cooling DX","West Zone System Efficiency: ASHRAE","EER / IEER","MIN",116,"11.2 / 11.4",null,null,null,116,"11.2 / 11.4",null,null,null,94,"11.2 / 11.4",null,null,null,94,"11.2 / 11.4"]
[null,"Cooling DX","West Zone System Efficiency: FEC","EER / IEER","MIN",116,null,null,"11.2 / 11.4",null,116,null,null,"11.2 / 11.4",null,94,null,null,"11.2 / 11.4",null,94,null,null,"11.2 / 11.4"]
[]
[null,"Cooling DX","Core Zone System Efficiency: ASHRAE","EER / IEER","MIN",1046,"9.7 / 9.8",null,null,null,1046,"9.7 / 9.8",null,null,null,708,"10.0 / 10.1",null,null,null,708,"10.0 / 10.1"]
[null,"Cooling DX","Core Zone System Efficiency: FEC","EER / IEER","MIN",1046,null,null,"9.7 / 9.8",null,1046,null,null,"9.7 / 9.8",null,708,null,null,"10.0 / 10.1",null,708,null,null,"10.0 / 10.1"]
[]
[]
[null,null,"Air Economizer (Yes, or No):"]
[null,"Air Economizer","North Zone System Economizer: ASHRAE ","-","-",{"$f":"CoolCapNorthZone","v":124},"No",null,null,null,{"$f":"CoolCapNorthZoneCZ2","v":124},"Yes",null,null,null,{"$f":"T3CoolCapNorthZone","v":108},"No",null,null,null,{"$f":"T4CoolCapNorthZone","v":108},"Yes"]
[null,"Air Economizer","North Zone System Economizer: FEC","-","-",{"$f":"CoolCapNorthZoneIECC","v":124},null,null,"No",null,{"$f":"CoolCapNorthZoneIECCCZ2","v":124},null,null,"Yes",null,{"$f":"T3CoolCapNorthZoneIECC","v":108},null,null,"No",null,{"$f":"T4CoolCapNorthZoneIECC","v":108},null,null,"Yes"]
[]
[null,"Air Economizer","South Zone System Economizer: ASHRAE ","-","-",{"$f":"CoolCapSouthZone","v":114},"No",null,null,null,{"$f":"CoolCapSouthZoneCZ2","v":114},"Yes",null,null,null,{"$f":"T3CoolCapSouthZone","v":96},"No",null,null,null,{"$f":"T4CoolCapSouthZone","v":96},"Yes"]
[null,"Air Economizer","South Zone System Economizer: FEC","-","-",{"$f":"CoolCapSouthZoneIECC","v":114},null,null,"No",null,{"$f":"CoolCapSouthZoneIECCCZ2","v":114},null,null,"Yes",null,{"$f":"T3CoolCapSouthZoneIECC","v":96},null,null,"No",null,{"$f":"T4CoolCapSouthZoneIECC","v":96},null,null,"Yes"]
[]
[null,"Air Economizer","East Zone System Economizer: ASHRAE ","-","-",{"$f":"CoolCapEastZone","v":108},"No",null,null,null,{"$f":"CoolCapEastZoneCZ2","v":108},"Yes",null,null,null,{"$f":"T3CoolCapEastZone","v":118},"No",null,null,null,{"$f":"T4CoolCapEastZone","v":118},"Yes"]
[null,"Air Economizer","East Zone System Economizer: FEC","-","-",{"$f":"CoolCapEastZoneIECC","v":108},null,null,"No",null,{"$f":"CoolCapEastZoneIECCCZ2","v":108},null,null,"Yes",null,{"$f":"T3CoolCapEastZoneIECC","v":118},null,null,"No",null,{"$f":"T4CoolCapEastZoneIECC","v":118},null,null,"Yes"]
[]
[null,"Air Economizer","West Zone System Economizer: ASHRAE ","-","-",{"$f":"CoolCapWestZone","v":116},"No",null,null,null,{"$f":"CoolCapWestZoneCZ2","v":116},"Yes",null,null,null,{"$f":"T3CoolCapWestZone","v":94},"No",null,null,null,{"$f":"T4CoolCapWestZone","v":94},"Yes"]
[null,"Air Economizer","West Zone System Economizer: FEC","-","-",{"$f":"CoolCapWestZoneIECC","v":116},null,null,"No",null,{"$f":"CoolCapWestZoneIECCCZ2","v":116},null,null,"Yes",null,{"$f":"T3CoolCapWestZoneIECC","v":94},null,null,"No",null,{"$f":"T4CoolCapWestZoneIECC","v":94},null,null,"Yes"]
[]
[null,"Air Economizer","Core Zone System Economizer: ASHRAE ","-","-",{"$f":"CoolCapCoreZone","v":1046},"No",null,null,null,{"$f":"CoolCapCoreZoneCZ2","v":1046},"Yes",null,null,null,{"$f":"T3CoolCapCoreZone","v":708},"No",null,null,null,{"$f":"T4CoolCapCoreZone","v":708},"Yes"]
[null,"Air Economizer","Core Zone System Economizer: FEC","-","-",{"$f":"CoolCapCoreZoneIECC","v":1046},null,null,"No",null,{"$f":"CoolCapCoreZoneIECCCZ2","v":1046},null,null,"Yes",null,{"$f":"T3CoolCapCoreZoneIECC","v":708},null,null,"No",null,{"$f":"T4CoolCapCoreZoneIECC","v":708},null,null,"Yes"]
[]
[]
["Service Water Heating"]
[null,"SWH","SWH Type",null,null,null,"Storage Water Heater",null,"Storage Water Heater",null,null,"Storage Water Heater",null,"Storage Water Heater",null,null,"Storage Water Heater",null,"Storage Water Heater",null,null,"Storage Water Heater",null,"Storage Water Heater"]
[null,"SWH","Fuel Type",null,null,null,"Electric",null,"Electric",null,null,"Electric",null,"Electric",null,null,"Electric",null,"Electric",null,null,"Electric",null,"Electric"]
[null,"SWH","Thermal Efficiency:"]
[null,"SWH","Size <= 12 kW, Energy Factor (EF)"," - ","MIN",12,0.86439999999999995,null,0.86439999999999995,null,14,null,null,null,null,12,0.86439999999999995,null,0.86439999999999995,null,14]
[null,"SWH","Size > 12 kW, Size > 20 gal, Standby Loss","Btu/h","MAX",{"$f":"F105","v":12},null,null,null,null,{"$f":"SWHCapacityCZ2","v":14},333.05,null,293.39999999999998,null,{"$f":"T3SWHCapacity","v":12},null,null,null,null,{"$f":"T4SWHCapacity","v":14},333.05,null,293.39999999999998]

{"sheet":"Prototype C1","index":4,"n_rows":124,"n_cols":25,"rows_kept":124,"cut":false,"hidden":false,"merged":[[3,10,3,14],[3,20,3,24],[3,5,3,9],[3,15,3,19]]}
[]
["Output Results for Performance Based Code Compliance Reference Design Tests (Envelope Requirements shall use U-Factor for walls and Roofs, and F-Factor for slab-on-grade floors)"]
[]
[null,null,null,null,null,"Test Run 1 (Climate Zone 1), Manufacturing",null,null,null,null,"Test Run 2 (Climate Zone 2), Manufacturing",null,null,null,null,"Test Run 3 (Climate Zone 1), Warehouse",null,null,null,null,"Test Run 4 (Climate Zone 2), Warehouse"]
[null,"TYPE","Description of Components","UNITS","MIN / MAX","Sizing Results","Reference Results for Baseline model (ASHRAE)","Compliance Software Baseline Model Results (ASHRAE)","Reference Results for Baseline model (FEC)","Compliance Software Baseline Model Results (FEC)","Sizing Results","Reference Results for Baseline model (ASHRAE)","Compliance Software Baseline Model Results (ASHRAE)","Reference Results for Baseline model (FEC)","Compliance Software Baseline Model Results (FEC)","Sizing Results","Reference Results for Baseline model (ASHRAE)","Compliance Software Baseline Model Results (ASHRAE)","Reference Results for Baseline model (FEC)","Compliance Software Baseline Model Results (FEC)","Sizing Results","Reference Results for Baseline model (ASHRAE)","Compliance Software Baseline Model Results (ASHRAE)","Reference Results for Baseline model (FEC)","Compliance Software Baseline Model Results (FEC)"]
["Envelope Components"]
[null,"Wall","Exterior Wall: U-Value","Btu/(h-ft2-°F)","MAX",null,0.57999999999999996,null,0.14199999999999999,null,null,0.151,null,0.14199999999999999,null,null,0.57999999999999996,null,0.14199999999999999,null,null,0.151,null,0.14199999999999999]
[null,"Wall","Exterior Wall: Thermal Capacity","(Btu/ft2-°F)",null,null,21.5,null,"NA",null,null,21.5,null,"NA",null,null,21.5,null,"NA",null,null,21.5,null,"NA"]
[null,"Wall","Exterior Wall: Solar Reflectance","-","MIN",null,"NA",null,"NR",null,null,"NA",null,"NR",null,null,"NA",null,"NR",null,null,"NA",null,"NR"]
[null,"Wall","Exterior Wall: Solar Absorptance","-","MAX",null,"NA",null,0.75,null,null,"NA",null,0.75,null,null,"NA",null,0.75,null,null,"NA",null,0.75]
[null,"Wall","Exterior Wall: Thermal Emittance","-","MIN",null,"NA",null,0.9,null,null,"NA",null,0.9,null,null,"NA",null,0.9,null,null,"NA",null,0.9]
[null,"Floor","Floor Slab-on-grade: Unheated F-factor","Btu/(h-ft-°F)","MAX",null,0.73,null,0.73,null,null,0.73,null,0.73,null,null,0.73,null,0.73,null,null,0.73,null,0.73]
[null,"Floor","Floor Slab-on-grade: Thermal Capacity","(Btu/ft2-°F)",null,null,8.25,null,"NA",null,null,8.25,null,"NA",null,null,8.25,null,"NA",null,null,8.25,null,"NA"]
[null,"Roof","Exterior Roof: U-Value","Btu/(h-ft2-°F)","MAX",null,6.3E-2,null,4.8000000000000001E-2,null,null,4.8000000000000001E-2,null,4.8000000000000001E-2,null,null,6.3E-2,null,4.8000000000000001E-2,null,null,4.8000000000000001E-2,null,4.8000000000000001E-2]
[null,"Roof","Exterior Roof: Thermal Capacity","(Btu/ft2-°F)",null,null,2.83,null,"NA",null,null,2.83,null,"NA",null,null,2.83,null,"NA",null,null,2.83,null,"NA"]
[null,"Roof","Exterior Roof: Solar Reflectance","-","MIN",null,0.6,null,"NA",null,null,0.6,null,"NA",null,null,0.6,null,"NA",null,null,0.6,null,"NA"]
[null,"Roof","Exterior Roof: Solar Absorptance","-","MAX",null,"NR",null,0.75,null,null,"NR",null,0.75,null,null,"NR",null,0.75,null,null,"NR",null,0.75]
[null,"Roof","Exterior Roof: Thermal Emittance","-","MIN",null,0.9,null,0.9,null,null,0.9,null,0.9,null,null,0.9,null,0.9,null,null,0.9,null,0.9]
[null,"Fenestration","Exterior Window: U-Value","Btu/(h-ft2-°F)","MAX",null,1.2,null,0.5,null,null,1.1000000000000001,null,0.5,null,null,1.2,null,0.5,null,null,1.1000000000000001,null,0.5]
[null,"Fenestration","Exterior Window: SHGC","-","MAX",null,0.25,null,0.25,null,null,0.25,null,0.25,null,null,0.25,null,0.25,null,null,0.25,null,0.25]
[null,"Fenestration","Overhang Multiplier South Orientations, (-)",null,null,null,0.44,null,1.6,null,null,0.44,null,1.6,null,null,0.44,null,1.6,null,null,0.44,null,1.6]
[null,"Fenestration","Adjusted SHGC South Orientation, (-)",null,null,null,{"$f":"0.5*G$21","v":0.22},null,{"$f":"I$20*I$21","v":0.4},null,null,{"$f":"0.4*L$21","v":0.17600000000000002},null,{"$f":"N$20*N$21","v":0.4},null,null,{"$f":"0.5*Q$21","v":0.22},null,{"$f":"S$20*S$21","v":0.4},null,null,{"$f":"0.4*V$21","v":0.17600000000000002},null,{"$f":"X$20*X$21","v":0.4}]
[null,"Fenestration","Exterior Window: WWR","(%)","Max",null,40,null,40,null,null,40,null,40,null,null,40,null,40,null,null,40,null,40]
[null,"Fenestration","Window Area"]
[null,"Fenestration","South Window Area","ft2","MAX",null,1280,null,1280,null,null,1280,null,1280,null,null,1280,null,1280,null,null,1280,null,1280]
[null,"Fenestration","East Window Area","ft2","MAX",null,0,null,0,null,null,0,null,0,null,null,0,null,0,null,null,0,null,0]
[null,"Fenestration","North Window Area","ft2","MAX",null,0,null,0,null,null,0,null,0,null,null,0,null,0,null,null,0,null,0]
[null,"Fenestration","West Window Area","ft2","MAX",null,0,null,0,null,null,0,null,0,null,null,0,null,0,null,null,0,null,0]
[null,"Skylight","Skylight Area","ft2","MAX",null,3200,null,3200,null,null,3200,null,3200,null,null,3200,null,3200,null,null,3200,null,3200]
[null,"Skylight","Skylight: U-Value","Btu/(h-ft2-°F)","MAX",null,1.98,null,0.75,null,null,1.98,null,0.65,null,null,1.98,null,0.75,null,null,1.98,null,0.65]
[null,"Skylight","Skylight: SHGC","-","MAX",null,0.19,null,0.35,null,null,0.19,null,0.35,null,null,0.19,null,0.35,null,null,0.19,null,0.35]
[null,"Skylight","Skylight: Skylight-Roof Ratio","(%)","MAX",null,2,null,2,null,null,2,null,2,null,null,2,null,2,null,null,2,null,2]
[null,null," "]
["Horizontal Overhang Shade"]
[null,null,"Projection Factor  (-)",null,null,null,0,null,0,null,null,0,null,0,null,null,0,null,0,null,null,0,null,0]
[]
["Interior Lighting"]
[null,"Lighting","LPD: Building Area Method","W/ft2","MAX",null,1.1100000000000001,null,1.3,null,null,1.1100000000000001,null,1.3,null,null,0.66,null,0.6,null,null,0.66,null,0.6]
[null,null,null,null,""]
["Exterior Lighting",null,null,null,""]
[null,"Lighting","Total Lighting Allowance (W)","W","MAX",null,880,null,880,null,null,880,null,880,null,null,880,null,880,null,null,880,null,880]
[null,null,null,null,""]
["Internal Loads"]
[null,"Equipment","Internal Electric Power Density","W/ft2","-",null,1.6,null,1.6,null,null,1.6,null,1.6,null,null,1,null,1,null,null,1,null,1]
[]
["HVAC System"]
[null,null,"HVAC System Type",null,null,null,"Packaged Roof Top Air Conditioner",null,"Packaged Roof Top Air Conditioner",null,null,"Packaged Roof Top Air Conditioner",null,"Packaged Roof Top Air Conditioner",null,null,"Packaged Roof Top Heat Pump",null,"Packaged Roof Top Heat Pump",null,null,"Packaged Roof Top Heat Pump",null,"Packaged Roof Top Heat Pump"]
[]
[null,null,"Minimum Heating Efficiency:"]
[null,null,"Warm-Air Furnace, Gas Fired Efficiency:"]
[null,"Furnace","North Zone Furnace Efficiency: ASHRAE","%AFUE / % ","MIN",110,"78.0 / 80.0",null,null,null,110,"78.0 / 80.0",null,null,null,null,"NA",null,null,null,null,"NA"]
[null,"Furnace","North Zone Furnace Efficiency: FEC","%AFUE","MIN",110,null,null,80,null,110,null,null,80,null,null,null,null,"NA",null,null,null,null,"NA"]
[]
[null,"Furnace","South Zone Furnace Efficiency: ASHRAE","%AFUE / % ","MIN",95,"78.0 / 80.0",null,null,null,95,"78.0 / 80.0",null,null,null,null,"NA",null,null,null,null,"NA"]
[null,"Furnace","South Zone Furnace Efficiency: FEC","%AFUE","MIN",95,null,null,80,null,95,null,null,80,null,null,null,null,"NA",null,null,null,null,"NA"]
[]
[null,"Furnace","East Zone Furnace Efficiency: ASHRAE","%AFUE / % ","MIN",120,"78.0 / 80.0",null,null,null,120,"78.0 / 80.0",null,null,null,null,"NA",null,null,null,null,"NA"]
[null,"Furnace","East Zone Furnace Efficiency: FEC","%AFUE","MIN",120,null,null,80,null,120,null,null,80,null,null,null,null,"NA",null,null,null,null,"NA"]
[]
[null,"Furnace","West Zone Furnace Efficiency: ASHRAE","%AFUE / % ","MIN",90,"78.0 / 80.0",null,null,null,90,"78.0 / 80.0",null,null,null,null,"NA",null,null,null,null,"NA"]
[null,"Furnace","West Zone Furnace Efficiency: FEC","%AFUE","MIN",90,null,null,80,null,90,null,null,80,null,null,null,null,"NA",null,null,null,null,"NA"]
[]
[null,"Furnace","Core Zone Furnace Efficiency: ASHRAE","%","MIN",900,80,null,null,null,900,80,null,null,null,null,"NA",null,null,null,null,"NA"]
[null,"Furnace","Core Zone Furnace Efficiency: FEC","%","MIN",900,null,null,80,null,900,null,null,80,null,null,null,null,"NA",null,null,null,null,"NA"]
[]
[]
[null,null,"Heating Minimum Efficiency:"]
[null,null,"Efficiency (HSPF, COP at 47°F/COP at 17°F):"]
[null,"Heating DX","North Zone System Efficiency: ASHRAE","COP / COP","MIN",null,null,null,null,null,null,null,null,null,null,{"$f":"T3CoolCapNorthZone","v":102},"3.3 / 2.25",null,null,null,{"$f":"T4CoolCapNorthZone","v":102},"3.3 / 2.25"]
[null,"Heating DX","North Zone System Efficiency: FEC","COP / COP","MIN",null,null,null,null,null,null,null,null,null,null,{"$f":"T3CoolCapNorthZoneIECC","v":102},null,null,"3.3 / 2.25",null,{"$f":"T4CoolCapNorthZoneIECC","v":102},null,null,"3.3 / 2.25"]
[]
[null,"Heating DX","South Zone System Efficiency: ASHRAE","COP / COP","MIN",null,null,null,null,null,null,null,null,null,null,{"$f":"T3CoolCapSouthZone","v":122},"3.3 / 2.25",null,null,null,{"$f":"T4CoolCapSouthZone","v":122},"3.3 / 2.25"]
[null,"Heating DX","South Zone System Efficiency: FEC","COP / COP","MIN",null,null,null,null,null,null,null,null,null,null,{"$f":"T3CoolCapSouthZoneIECC","v":122},null,null,"3.3 / 2.25",null,{"$f":"T4CoolCapSouthZoneIECC","v":122},null,null,"3.3 / 2.25"]
[]
[null,"Heating DX","East Zone System Efficiency: ASHRAE","COP / COP","MIN",null,null,null,null,null,null,null,null,null,null,{"$f":"T3CoolCapEastZone","v":102},"3.3 / 2.25",null,null,null,{"$f":"T4CoolCapEastZone","v":102},"3.3 / 2.25"]
[null,"Heating DX","East Zone System Efficiency: FEC","COP / COP","MIN",null,null,null,null,null,null,null,null,null,null,{"$f":"T3CoolCapEastZoneIECC","v":102},null,null,"3.3 / 2.25",null,{"$f":"T4CoolCapEastZone","v":102},null,null,"3.3 / 2.25"]
[]
[null,"Heating DX","West Zone System Efficiency: ASHRAE","COP / COP","MIN",null,null,null,null,null,null,null,null,null,null,{"$f":"T3CoolCapWestZone","v":102},"3.3 / 2.25",null,null,null,{"$f":"T4CoolCapWestZone","v":102},"3.3 / 2.25"]
[null,"Heating DX","West Zone System Efficiency: FEC","COP / COP","MIN",null,null,null,null,null,null,null,null,null,null,{"$f":"T3CoolCapWestZoneIECC","v":102},null,null,"3.3 / 2.25",null,{"$f":"T4CoolCapWestZoneIECC","v":102},null,null,"3.3 / 2.25"]
[]
[null,"Heating DX","Core Zone System Efficiency: ASHRAE","COP / COP","MIN",null,null,null,null,null,null,null,null,null,null,{"$f":"T3CoolCapCoreZone","v":1520},"3.2 / 2.05",null,null,null,{"$f":"T4CoolCapCoreZone","v":1520},"3.2 / 2.05"]
[null,"Heating DX","Core Zone System Efficiency: FEC","COP / COP","MIN",null,null,null,null,null,null,null,null,null,null,{"$f":"T3CoolCapCoreZoneIECC","v":1520},null,null,"3.2 / 2.05",null,{"$f":"T4CoolCapCoreZoneIECC","v":1520},null,null,"3.2 / 2.05"]
[]
[]
[null,null,"Cooling Minimum Efficiency:"]
[null,"Cooling DX","North Zone System Efficiency: ASHRAE","EER / IEER","MIN",220,"11.0 / 11.2",null,null,null,200,"11.0 / 11.2",null,null,null,102,"11.2 / 11.4",null,null,null,102,"11.2 / 11.4"]
[null,"Cooling DX","North Zone System Efficiency: FEC","EER / IEER","MIN",220,null,null,"11.0 / 11.2",null,220,null,null,"11.0 / 11.2",null,102,null,null,"11.2 / 11.4",null,102,null,null,"11.2 / 11.4"]
[]
[null,"Cooling DX","South Zone System Efficiency: ASHRAE","EER / IEER","MIN",197,"11.0 / 11.2",null,null,null,180,"11.0 / 11.2",null,null,null,122,"11.2 / 11.4",null,null,null,122,"11.2 / 11.4"]
[null,"Cooling DX","South Zone System Efficiency: FEC","EER / IEER","MIN",197,null,null,"11.0 / 11.2",null,180,null,null,"11.0 / 11.2",null,122,null,null,"11.2 / 11.4",null,122,null,null,"11.2 / 11.4"]
[]
[null,"Cooling DX","East Zone System Efficiency: ASHRAE","EER / IEER","MIN",242,"10.0 / 10.1",null,null,null,220,"11.0 / 11.2",null,null,null,102,"11.2 / 11.4",null,null,null,102,"11.2 / 11.4"]
[null,"Cooling DX","East Zone System Efficiency: FEC","EER / IEER","MIN",242,null,null,"10.0 / 10.1",null,220,null,null,"11.0 / 11.2",null,102,null,null,"11.2 / 11.4",null,102,null,null,"11.2 / 11.4"]
[]
[null,"Cooling DX","West Zone System Efficiency: ASHRAE","EER / IEER","MIN",191,"11.0 / 11.2",null,null,null,170,"11.0 / 11.2",null,null,null,102,"11.2 / 11.4",null,null,null,102,"11.2 / 11.4"]
[null,"Cooling DX","West Zone System Efficiency: FEC","EER / IEER","MIN",191,null,null,"11.0 / 11.2",null,170,null,null,"11.0 / 11.2",null,102,null,null,"11.2 / 11.4",null,102,null,null,"11.2 / 11.4"]
[]
[null,"Cooling DX","Core Zone System Efficiency: ASHRAE","EER / IEER","MIN",3160,"9.7 / 9.8",null,null,null,2840,"9.7 / 9.8",null,null,null,1520,"9.7 / 9.8",null,null,null,1520,"9.7 / 9.8"]
[null,"Cooling DX","Core Zone System Efficiency: FEC","EER / IEER","MIN",3160,null,null,"9.7 / 9.8",null,2840,null,null,"9.7 / 9.8",null,1520,null,null,"9.7 / 9.8",null,1520,null,null,"9.7 / 9.8"]
[]
[]
[null,null,"Air Economizer (Yes, or No):"]
[null,"Air Economizer","North Zone System Economizer: ASHRAE ","-","-",{"$f":"CoolCapNorthZone","v":220},"No",null,null,null,{"$f":"CoolCapNorthZoneCZ2","v":200},"Yes",null,null,null,{"$f":"T3CoolCapNorthZone","v":102},"No",null,null,null,{"$f":"T4CoolCapNorthZone","v":102},"Yes"]
[null,"Air Economizer","North Zone System Economizer: FEC","-","-",{"$f":"CoolCapNorthZoneIECC","v":220},null,null,"No",null,{"$f":"CoolCapNorthZoneIECCCZ2","v":220},null,null,"Yes",null,{"$f":"T3CoolCapNorthZoneIECC","v":102},null,null,"No",null,{"$f":"T4CoolCapNorthZoneIECC","v":102},null,null,"Yes"]
[]
[null,"Air Economizer","South Zone System Economizer: ASHRAE ","-","-",{"$f":"CoolCapSouthZone","v":197},"No",null,null,null,{"$f":"CoolCapSouthZoneCZ2","v":180},"Yes",null,null,null,{"$f":"T3CoolCapSouthZone","v":122},"No",null,null,null,{"$f":"T4CoolCapSouthZone","v":122},"Yes"]
[null,"Air Economizer","South Zone System Economizer: FEC","-","-",{"$f":"CoolCapSouthZoneIECC","v":197},null,null,"No",null,{"$f":"CoolCapSouthZoneIECCCZ2","v":180},null,null,"Yes",null,{"$f":"T3CoolCapSouthZoneIECC","v":122},null,null,"No",null,{"$f":"T4CoolCapSouthZoneIECC","v":122},null,null,"Yes"]
[]
[null,"Air Economizer","East Zone System Economizer: ASHRAE ","-","-",{"$f":"CoolCapEastZone","v":242},"No",null,null,null,{"$f":"CoolCapEastZoneCZ2","v":220},"Yes",null,null,null,{"$f":"T3CoolCapEastZone","v":102},"No",null,null,null,{"$f":"T4CoolCapEastZone","v":102},"Yes"]
[null,"Air Economizer","East Zone System Economizer: FEC","-","-",{"$f":"CoolCapEastZoneIECC","v":242},null,null,"No",null,{"$f":"CoolCapEastZoneIECCCZ2","v":220},null,null,"Yes",null,{"$f":"T3CoolCapEastZoneIECC","v":102},null,null,"No",null,{"$f":"T4CoolCapEastZoneIECC","v":102},null,null,"Yes"]
[]
[null,"Air Economizer","West Zone System Economizer: ASHRAE ","-","-",{"$f":"CoolCapWestZone","v":191},"No",null,null,null,{"$f":"CoolCapWestZoneCZ2","v":170},"Yes",null,null,null,{"$f":"T3CoolCapWestZone","v":102},"No",null,null,null,{"$f":"T4CoolCapWestZone","v":102},"Yes"]
[null,"Air Economizer","West Zone System Economizer: FEC","-","-",{"$f":"CoolCapWestZoneIECC","v":191},null,null,"No",null,{"$f":"CoolCapWestZoneIECCCZ2","v":170},null,null,"Yes",null,{"$f":"T3CoolCapWestZoneIECC","v":102},null,null,"No",null,{"$f":"T4CoolCapWestZoneIECC","v":102},null,null,"Yes"]
[]
[null,"Air Economizer","Core Zone System Economizer: ASHRAE ","-","-",{"$f":"CoolCapCoreZone","v":3160},"No",null,null,null,{"$f":"CoolCapCoreZoneCZ2","v":2840},"Yes",null,null,null,{"$f":"T3CoolCapCoreZone","v":1520},"No",null,null,null,{"$f":"T4CoolCapCoreZone","v":1520},"Yes"]
[null,"Air Economizer","Core Zone System Economizer: FEC","-","-",{"$f":"CoolCapCoreZoneIECC","v":3160},null,null,"No",null,{"$f":"CoolCapCoreZoneIECCCZ2","v":2840},null,null,"Yes",null,{"$f":"T3CoolCapCoreZoneIECC","v":1520},null,null,"No",null,{"$f":"T4CoolCapCoreZoneIECC","v":1520},null,null,"Yes"]
[]
[]
["Service Water Heating"]
[null,"SWH","SWH Type",null,null,null,"Storage Water Heater",null,"Storage Water Heater",null,null,"Storage Water Heater",null,"Storage Water Heater",null,null,"Storage Water Heater",null,"Storage Water Heater",null,null,"Storage Water Heater",null,"Storage Water Heater"]
[null,"SWH","Fuel Type",null,null,null,"Gas",null,"Gas",null,null,"Gas",null,"Gas",null,null,"Gas",null,"Gas",null,null,"Gas",null,"Gas"]
[null,"SWH","Thermal Efficiency:"]
[null,"SWH","Size <= 75 kBtu/h, Energy Factor (EF)"," - ","MIN",75,0.51800000000000002,null,0.51800000000000002,null,77,null,null,null,null,75,0.51800000000000002,null,0.51800000000000002,null,77]
[null,"SWH","Size > 75 kBtu/h, Thermal Efficiency (Et)","%","MAX",{"$f":"SWHCapacity","v":75},null,null,null,null,{"$f":"SWHCapacityCZ2","v":77},80,null,80,null,{"$f":"T3SWHCapacity","v":75},null,null,null,null,{"$f":"T4SWHCapacity","v":77},80,null,80]

{"sheet":"Prototype D7","index":5,"n_rows":109,"n_cols":15,"rows_kept":109,"cut":false,"hidden":false,"merged":[[3,5,3,9],[3,10,3,14]]}
[]
["Output Results for Performance Based Code Compliance Reference Design Tests (Envelope Requirements shall use U-Factor for walls and Roofs, and F-Factor for slab-on-grade floors)"]
[]
[null,null,null,null,null,"Test Run 1 (Climate Zone 1)",null,null,null,null,"Test Run 2 (Climate Zone 2)"]
[null,"TYPE","Description of Components","UNITS","MIN / MAX","Sizing Results","Reference Results for Baseline model (ASHRAE)","Compliance Software Baseline Model Results (ASHRAE)","Reference Results for Baseline model (FEC)","Compliance Software Baseline Model Results (FEC)","Sizing Results","Reference Results for Baseline model (ASHRAE)","Compliance Software Baseline Model Results (ASHRAE)","Reference Results for Baseline model (FEC)","Compliance Software Baseline Model Results (FEC)"]
["Envelope Components"]
[null,"Wall","Exterior Wall: U-Value","Btu/(h-ft2-°F)","MAX",null,0.124,null,7.6999999999999999E-2,null,null,0.124,null,7.6999999999999999E-2]
[null,"Wall","Exterior Wall: Thermal Capacity","(Btu/ft2-°F)",null,null,9.02,null,"NA",null,null,9.02,null,"NA"]
[null,"Wall","Exterior Wall: Solar Reflectance","-","MIN",null,"NA",null,"NR",null,null,"NA",null,"NR"]
[null,"Wall","Exterior Wall: Solar Absorptance","-","MAX",null,"NA",null,0.75,null,null,"NA",null,0.75]
[null,"Wall","Exterior Wall: Thermal Emittance","-","MIN",null,"NA",null,0.9,null,null,"NA",null,0.9]
[null,"Floor","Floor Slab-on-grade: Unheated F-factor","Btu/(h-ft-°F)","MAX",null,0.73,null,0.73,null,null,0.73,null,0.73]
[null,"Floor","Floor Slab-on-grade: Thermal Capacity","(Btu/ft2-°F)",null,null,9.33,null,"NA",null,null,9.33,null,"NA"]
[null,"Roof","Exterior Roof: U-Value","Btu/(h-ft2-°F)","MAX",null,6.3E-2,null,4.8000000000000001E-2,null,null,4.8000000000000001E-2,null,4.8000000000000001E-2]
[null,"Roof","Exterior Roof: Thermal Capacity","(Btu/ft2-°F)",null,null,2.7,null,"NA",null,null,2.7,null,"NA"]
[null,"Roof","Exterior Roof: Solar Reflectance","-","MIN",null,0.6,null,"NA",null,null,0.6,null,"NA"]
[null,"Roof","Exterior Roof: Solar Absorptance","-","MAX",null,"NR",null,0.75,null,null,"NR",null,0.75]
[null,"Roof","Exterior Roof: Thermal Emittance","-","MIN",null,0.9,null,0.9,null,null,0.9,null,0.9]
[null,"Floor","Internal Floor: Thermal Capacity","(Btu/ft2-°F)",null,null,9.9,null,"NA",null,null,9.9,null,"NA"]
[null,"Floor","Internal Floor: U-Value","Btu/(h-ft2-°F)","MAX",null,0.33200000000000002,null,6.6000000000000003E-2,null,null,0.107,null,3.3000000000000002E-2]
[null,"Fenestration","Exterior Window: U-Value","Btu/(h-ft2-°F)","MAX",null,1.2,null,0.5,null,null,0.75,null,0.5]
[null,"Fenestration","Exterior Window: SHGC","-","MAX",null,0.25,null,0.25,null,null,0.25,null,0.25]
[null,"Fenestration","Overhang Multiplier Other Orientations (Retail), (-)",null,null,null,0.44,null,1.6,null,null,0.44,null,1.6]
[null,"Fenestration","Overhang Multiplier North Orientation (Retail), (-)",null,null,null,1,null,1,null,null,1,null,1]
[null,"Fenestration","Adjusted SHGC Other Orientations (Retail), (-)",null,null,null,{"$f":"0.56*G$23","v":0.24640000000000004},null,{"$f":"I$22*I$23","v":0.4},null,null,{"$f":"0.56*L$23","v":0.24640000000000004},null,{"$f":"N$22*N$23","v":0.4}]
[null,"Fenestration","Adjusted SHGC North Orientations (Retail), (-)",null,null,null,{"$f":"0.56*G$24","v":0.56000000000000005},null,{"$f":"I$22*I$24","v":0.25},null,null,{"$f":"0.56*L$24","v":0.56000000000000005},null,{"$f":"N$22*N$24","v":0.25}]
[null,"Fenestration","Overhang Multiplier Other Orientations (Office), (-)",null,null,null,0.61,null,1.6,null,null,0.61,null,1.6]
[null,"Fenestration","Overhang Multiplier North Orientation (Office), (-)",null,null,null,1,null,1,null,null,1,null,1]
[null,"Fenestration","Adjusted SHGC Other Orientations (Office), (-)",null,null,null,{"$f":"0.4*G$27","v":0.24399999999999999},null,{"$f":"I$22*I$27","v":0.4},null,null,{"$f":"0.4*L$27","v":0.24399999999999999},null,{"$f":"N$22*N$27","v":0.4}]
[null,"Fenestration","Adjusted SHGC North Orientations (Office), (-)",null,null,null,{"$f":"G$22*G$28","v":0.25},null,{"$f":"I$22*I$28","v":0.25},null,null,{"$f":"L$22*L$28","v":0.25},null,{"$f":"N$22*N$28","v":0.25}]
[null,"Fenestration","Exterior Window: WWR: Non-Residential","(%)","MAX",null,40,null,40,null,null,40,null,40]
[null,"Fenestration","Exterior Window: WWR: Residential","(%)","MAX",null,40,null,40,null,null,40,null,40]
[null,"Fenestration","Window Area:"]
[null,"Fenestration","Non-Residential"]
[null,"Fenestration","South Window Area","ft2","MAX",null,2310,null,2310,null,null,2310,null,2310]
[null,"Fenestration","East Window Area","ft2","MAX",null,990,null,990,null,null,990,null,990]
[null,"Fenestration","North Window Area","ft2","MAX",null,1520.25,null,1520.25,null,null,1520.25,null,1520.25]
[null,"Fenestration","West Window Area","ft2","MAX",null,1386,null,1386,null,null,1386,null,1386]
[null,"Fenestration","Residential"]
[null,"Fenestration","South Window Area","ft2","MAX",null,1728,null,1728,null,null,1728,null,1728]
[null,"Fenestration","East Window Area","ft2","MAX",null,1536,null,1536,null,null,1536,null,1536]
[null,"Fenestration","North Window Area","ft2","MAX",null,1728,null,1728,null,null,1728,null,1728]
[null,"Fenestration","West Window Area","ft2","MAX",null,1536,null,1536,null,null,1536,null,1536]
[null,"Skylight","Skylight Area","ft2","MAX",null,"NA",null,"NA",null,null,"NA",null,"NA"]
[null,"Skylight","Skylight: U-Value","Btu/(h-ft2-°F)","MAX",null,"NA",null,"NA",null,null,"NA",null,"NA"]
[null,"Skylight","Skylight: SHGC","-","MAX",null,"NA",null,"NA",null,null,"NA",null,"NA"]
[null,"Skylight","Skylight: Skylight-Roof Ratio","(%)","MAX",null,"NA",null,"NA",null,null,"NA",null,"NA"]
[]
["Interior Lighting"]
[null,"Lighting","LPD - Building Area Method: Retail","W/ft2","MAX",null,1.4,null,1.4,null,null,1.4,null,1.4]
[null,"Lighting","LPD - Building Area Method: Office","W/ft2","MAX",null,0.9,null,0.9,null,null,0.9,null,0.9]
[null,"Lighting","LPD - Building Area Method: Apartment Units","W/ft2","MAX",null,0.6,null,0.7,null,null,0.6,null,0.7]
[null,"Lighting","LPD - Building Area Method: Multi-family Hallway","W/ft2","MAX",null,0.6,null,0.7,null,null,0.6,null,0.7]
[]
["Exterior Lighting",null,null,null,""]
[null,"Lighting","Total Lighting Allowance","W","MAX",null,1450,null,1450,null,null,1450,null,1450]
[]
["Internal Loads"]
[null,"Equipment","Internal Electric Power Density: Retail","W/ft2","-",null,1.5,null,1.5,null,null,1.5,null,1.5]
[null,"Equipment","Internal Electric Power Density: Office","W/ft2","-",null,1,null,1,null,null,1,null,1]
[null,"Equipment","Internal Electric Power Density: Apartment Units","W/ft2","-",null,1.65,null,1.65,null,null,1.65,null,1.65]
[null,"Equipment","Internal Electric Power Density: Multi-family Hallway","W/ft2","-",null,0.7,null,0.7,null,null,0.7,null,0.7]
[null,null,null,null,""]
[]
["HVAC System"]
[null,null,"HVAC System Type"]
[null,null,"Retail Floor",null,null,null,"Four-Pipe Fan Coil, Chilled Water, Hot-Water Fossil Fuel Boiler",null,"Four-Pipe Fan Coil, Chilled Water, Hot-Water Fossil Fuel Boiler",null,null,"Four-Pipe Fan Coil, Chilled Water, Hot-Water Fossil Fuel Boiler",null,"Four-Pipe Fan Coil, Chilled Water, Hot-Water Fossil Fuel Boiler"]
[null,null,"Office Floors",null,null,null,"VAV with Reheat, Chilled Water, Hot-Water Fossil Fuel Boiler",null,"VAV with Reheat, Chilled Water, Hot-Water Fossil Fuel Boiler",null,null,"VAV with Reheat, Chilled Water, Hot-Water Fossil Fuel Boiler",null,"VAV with Reheat, Chilled Water, Hot-Water Fossil Fuel Boiler"]
[null,null,"Multi-Family Floors",null,null,null,"Four-Pipe Fan Coil, Chilled Water, Hot-Water Fossil Fuel Boiler",null,"Four-Pipe Fan Coil, Chilled Water, Hot-Water Fossil Fuel Boiler",null,null,"Four-Pipe Fan Coil, Chilled Water, Hot-Water Fossil Fuel Boiler",null,"Four-Pipe Fan Coil, Chilled Water, Hot-Water Fossil Fuel Boiler"]
[]
[]
[null,null,"Boiler Minimum Heating Efficiency:"]
[null,"Oil Boiler","Oil-Fired Boiler Efficiency: ASHRAE","% Et","MIN",600,80,null,null,null,800,80]
[null,"Oil Boiler","Oil-Fired Boiler Efficiency: FEC","% Et","MIN",600,null,null,80,null,800,null,null,80]
[]
[]
[null,null,"Water Chilling Package Minimum Efficiency:"]
[null,null,"Electrically Operated: "]
[null,null,"Path A: Centrifugal"]
[null,"Chiller","Central Centrifugal Chiller Efficiency: ASHRAE","kW/ton","MIN",120,"0.780 kW/ton, 0.630 IPLV",null,null,null,120,"0.780 kW/ton, 0.630 IPLV"]
[null,"Chiller","Central Centrifugal Chiller Efficiency: FEC","kW/ton","MIN",120,null,null,"0.780 kW/ton, 0.630 IPLV",null,120,null,null,"0.780 kW/ton, 0.630 IPLV"]
[]
[]
[null,null,"Air Economizer Requirement (Yes, or No):"]
[null,"Air Economizer","Retail North Zone System Economizer: ASHRAE ","-","-",22,"No",null,null,null,22,"No"]
[null,"Air Economizer","Retail North Zone System Economizer: FEC","-","-",22,null,null,"No",null,22,null,null,"No"]
[]
[null,"Air Economizer","Retail South Zone System Economizer: ASHRAE ","-","-",24,"No",null,null,null,24,"No"]
[null,"Air Economizer","Retail South Zone System Economizer: FEC","-","-",24,null,null,"No",null,24,null,null,"No"]
[]
[null,"Air Economizer","Retail East Zone System Economizer: ASHRAE ","-","-",22,"No",null,null,null,22,"No"]
[null,"Air Economizer","Retail East Zone System Economizer: FEC","-","-",22,null,null,"No",null,22,null,null,"No"]
[]
[null,"Air Economizer","Retail West Zone System Economizer: ASHRAE ","-","-",35,"No",null,null,null,35,"No"]
[null,"Air Economizer","Retail West Zone System Economizer: FEC","-","-",35,null,null,"No",null,35,null,null,"Yes"]
[]
[null,"Air Economizer","Retail Core Zone System Economizer: ASHRAE ","-","-",26,"No",null,null,null,26,"No"]
[null,"Air Economizer","Retail Core Zone System Economizer: FEC","-","-",26,null,null,"No",null,26,null,null,"No"]
[]
[null,"Air Economizer","Office Second Floor System Economizer: ASHRAE ","-","-",300,"No",null,null,null,300,"Yes"]
[null,"Air Economizer","Office Second Floor System Economizer: FEC","-","-",300,null,null,"No",null,300,null,null,"Yes"]
[]
[null,"Air Economizer","Office Third Floor System Economizer: ASHRAE ","-","-",360,"No",null,null,null,360,"Yes"]
[null,"Air Economizer","Office Third Floor System Economizer: FEC","-","-",360,null,null,"No",null,360,null,null,"Yes"]
[]
[]
["Elevator Motor"]
[null,null,"Electric Motor Power (HP)","HP","MAX",null,20,null,20,null,null,20,null,20]
[null,null,"Electric Motor Efficiency (%)","%","MAX",null,92,null,92,null,null,92,null,92]